[Event "ECo-C Extraliga 2023-24"]
[Site "Slovakia"]
[Date "2024.02.25"]
[Round "8"]
[White "Bulej, Matej"]
[Black "Blaho, Stefan"]
[Result "1-0"]
[ECO "D16"]
[WhiteElo "2013"]
[BlackElo "2039"]
[Annotator "NA"]
[PlyCount "115"]
[EventDate "2023.10.06"]
[EventType "team-tourn"]
[EventCountry "SVK"]
[SourceTitle "playchess.com"]
[Source "ChessBase"]
[SourceQuality "1"]
[TimeControl "40/5400+30:1800+30"]

1. d4 {[%emt 0:00:02]} d5 {[%emt 0:00:10]} 2. Nf3 {[%emt 0:00:05]} c6 {[%emt 0:00:24]} 3. c4 {[%emt 0:00:36]} Nf6 {[%emt 0:00:08]} 4. Nc3 {[%emt 0:00:05]} dxc4 {[%emt 0:00:11]} 5. a4 {[%emt 0:01:10]} Be6 {[%emt 0:00:19]} 6. e4 {[%emt 0:08:52]} Na6 {[%emt 0:01:56]} 7. Ne5 {[%emt 0:14:23]} g6 {[%emt 0:13:50]} 8. Bxc4 {[%emt 0:02:43]} Bxc4 {[%emt 0:00:18]} 9. Nxc4 {[%emt 0:00:06]} Bg7 {[%emt 0:01:38]} 10. Be3 {[%emt 0:08:57]} O-O {[%emt 0:02:54]} 11. O-O {[%emt 0:01:05]} Ne8 {[%emt 0:13:05]} 12. Qb3 {[%emt 0:16:54]} b6 {[%emt 0:06:47]} 13. Rfd1 {[%emt 0:02:15]} Nec7 {[%emt 0:09:33]} 14. Rd2 {[%emt 0:15:01]} Qc8 {[%emt 0:04:02]} 15. Rad1 {[%emt 0:01:08]} Ne6 {[%emt 0:03:10]} 16. Ne2 {[%emt 0:04:40]} Rd8 {[%emt 0:08:09]} 17. Rc1 {[%emt 0:01:20]} Qd7 {[%emt 0:05:01]} 18. Qa3 {[%emt 0:02:08]} Qe8 {[%emt 0:02:25]} 19. b4 {[%emt 0:02:26]} Rac8 {[%emt 0:04:12]} 20. d5 {[%emt 0:04:20]} cxd5 {[%emt 0:01:27]} 21. exd5 {[%emt 0:00:02]} Nf8 {[%emt 0:02:47]} 22. Qb3 {[%emt 0:06:16]} Nd7 {[%emt 0:05:14]} 23. Nd4 {[%emt 0:03:14]} Bxd4 {[%emt 0:00:11]} 24. Bxd4 {[%emt 0:00:27]} Rc7 {[%emt 0:03:18]} 25. Rdc2 {[%emt 0:01:32]} Rdc8 {[%emt 0:00:04]} 26. g3 {[%emt 0:01:32]} Qf8 {[%emt 0:02:11]} 27. Kg2 {[%emt 0:00:29]} h5 {[%emt 0:00:11]} 28. Be3 {[%emt 0:01:09]} Nf6 {[%emt 0:04:05]} 29. Bf4 {[%emt 0:00:02]} Nxd5 {[%emt 0:00:21]} 30. Bxc7 {[%emt 0:00:22]} Rxc7 {[%emt 0:00:16]} 31. b5 {[%emt 0:01:40]} Nc5 {[%emt 0:05:34]} 32. Qa3 {[%emt 0:00:13]} Qa8 {[%emt 0:00:09]} 33. Qf3 {[%emt 0:00:33]} Nd3 {[%emt 0:01:30]} 34. Kh1 {[%emt 0:01:01]} Qb7 {[%emt 0:01:10]} 35. Rd1 {[%emt 0:00:37]} N3b4 {[%emt 0:00:23]} 36. Ne5 {[%emt 0:00:28]} e6 {[%emt 0:00:46]} 37. Rxc7 {[%emt 0:00:26]} Qxc7 {[%emt 0:00:06]} 38. Nd3 {[%emt 0:00:27]} Na2 {[%emt 0:00:49]} 39. Nf4 {[%emt 0:00:31]} Nac3 {[%emt 0:00:37]} 40. Rc1 {[%emt 0:00:35]} Qe5 {[%emt 0:00:37]} 41. Nxd5 {[%emt 0:02:33]} Nxd5 {[%emt 0:00:11]} 42. Kg1 {[%emt 0:07:35]} Kg7 {[%emt 0:01:59]} 43. h4 {[%emt 0:01:11]} Qd4 {[%emt 0:01:02]} 44. Qa3 {[%emt 0:01:13]} Qe4 {[%emt 0:09:41]} 45. Rc8 {[%emt 0:06:00]} Kf6 {[%emt 0:06:01]} 46. Rd8 {[%emt 0:08:12]} Kf5 {[%emt 0:05:10]} 47. Rd7 {[%emt 0:01:17]} f6 {[%emt 0:00:01]} 48. Rxa7 {[%emt 0:00:57]} Qe1+ {[%emt 0:05:51]} 49. Kg2 {[%emt 0:00:07]} Nc3 {[%emt 0:00:15]} 50. Qb4 {[%emt 0:01:34]} e5 {[%emt 0:04:10]} 51. Rc7 {[%emt 0:01:17]} Qe4+ {[%emt 0:00:01]} 52. Qxe4+ {[%emt 0:00:11]} Nxe4 {[%emt 0:00:02]} 53. Rc6 {[%emt 0:01:07]} Nc5 {[%emt 0:00:20]} 54. Rxc5 {[%emt 0:00:56]} bxc5 {[%emt 0:00:11]} 55. b6 {[%emt 0:00:06]} c4 {[%emt 0:00:16]} 56. b7 {[%emt 0:00:02]} c3 {[%emt 0:00:10]} 57. b8=Q {[%emt 0:00:06]} c2 {[%emt 0:00:15]} 58. Qb2 {[%emt 0:00:09]} 1-0

[Event "ECo-C Extraliga 2023-24"]
[Site "Slovakia"]
[Date "2024.02.25"]
[Round "8.1"]
[White "Sahidi, Samir"]
[Black "Babula, Vlastimil"]
[Result "0-1"]
[ECO "B48"]
[WhiteElo "2478"]
[BlackElo "2535"]
[Annotator "ChessBase"]
[PlyCount "94"]
[EventDate "2023.10.06"]
[EventType "team-tourn"]
[EventCountry "SVK"]
[SourceTitle "playchess.com"]
[Source "ChessBase"]
[SourceQuality "1"]
[TimeControl "40/5400+30:1800+30"]

1. e4 {[%emt 0:00:07]} c5 {[%emt 0:00:19]} 2. Nf3 {[%emt 0:00:05]} e6 {[%emt 0:00:36]} 3. d4 {[%emt 0:00:20]} cxd4 {[%emt 0:00:09]} 4. Nxd4 {[%emt 0:00:06]} Nc6 {[%emt 0:00:29]} 5. Nc3 {[%emt 0:04:30]} Qc7 {[%emt 0:00:42]} 6. Be3 {[%emt 0:00:28]} a6 {[%emt 0:00:38]} 7. a3 {[%emt 0:04:26]} b5 {[%emt 0:01:40]} 8. Nxc6 {[%emt 0:06:03]} Qxc6 {[%emt 0:00:13]} 9. Qd4 {[%emt 0:02:07]} Bb7 {[%emt 0:03:55]} 10. Be2 {[%emt 0:02:45]} Rc8 {[%emt 0:01:53]} 11. f4 {[%emt 0:06:00]} Nf6 {[%emt 0:08:21]} 12. Bf3 {[%emt 0:05:41]} Bc5 {[%emt 0:02:26]} 13. Qd3 {[%emt 0:05:14]} Bxe3 {[%emt 0:06:38]} 14. Qxe3 {[%emt 0:03:44]} Qc5 {[%emt 0:01:11]} 15. Qxc5 {[%emt 0:06:07]} Rxc5 {[%emt 0:00:11]} 16. Kd2 {[%emt 0:00:03]} Ke7 {[%emt 0:11:27]} 17. e5 {[%emt 0:09:24]} Nd5 {[%emt 0:00:41]} 18. Ne2 {[%emt 0:07:44]} Rd8 {[%emt 0:05:42]} 19. Nd4 {[%emt 0:13:15]} d6 {[%emt 0:02:45]} 20. exd6+ {[%emt 0:01:17]} Rxd6 {[%emt 0:00:33]} 21. c3 {[%emt 0:00:09]} Rd7 {[%emt 0:06:03]} 22. Rhf1 {[%emt 0:03:25]} a5 {[%emt 0:06:09]} 23. Bxd5 {[%emt 0:08:35]} Rcxd5 {[%emt 0:07:44]} 24. g3 {[%emt 0:00:43]} g5 {[%emt 0:03:32]} 25. Rae1 {[%emt 0:02:23]} gxf4 {[%emt 0:05:09]} 26. gxf4 {[%emt 0:00:22]} Rh5 {[%emt 0:03:23]} 27. Rf2 {[%emt 0:01:05]} b4 {[%emt 0:05:02]} 28. Re5 {[%emt 0:05:05]} bxc3+ {[%emt 0:02:52]} 29. bxc3 {[%emt 0:00:15]} Rd5 {[%emt 0:02:16]} 30. Re3 {[%emt 0:02:44]} Kf6 {[%emt 0:04:26]} 31. Kc2 {[%emt 0:00:47]} Rh4 {[%emt 0:01:12]} 32. Kb3 {[%emt 0:00:54]} Rdh5 {[%emt 0:01:04]} 33. Ree2 {[%emt 0:00:15]} Rh3 {[%emt 0:01:39]} 34. Kb2 {[%emt 0:00:44]} Rc5 {[%emt 0:01:22]} 35. Rc2 {[%emt 0:00:31]} Be4 {[%emt 0:01:40]} 36. Rce2 {[%emt 0:00:14]} Bd5 {[%emt 0:01:51]} 37. Rc2 {[%emt 0:00:23]} Ke7 {[%emt 0:01:39]} 38. Rc1 {[%emt 0:00:36]} Rc8 {[%emt 0:01:18]} 39. Re2 {[%emt 0:00:49]} Kd6 {[%emt 0:00:34]} 40. Rd2 {[%emt 0:00:25]} Rb8+ {[%emt 0:00:29]} 41. Kc2 {[%emt 0:03:13]} Kc5 {[%emt 0:05:20]} 42. a4 {[%emt 0:02:14]} Be4+ {[%emt 0:04:30]} 43. Kd1 {[%emt 0:00:17]} Rg8 {[%emt 0:01:06]} 44. Re2 {[%emt 0:08:50]} Rg1+ {[%emt 0:05:05]} 45. Kd2 {[%emt 0:00:25]} Rd3+ {[%emt 0:01:41]} 46. Kc2 {[%emt 0:00:02]} Rxc1+ {[%emt 0:01:34]} 47. Kxc1 {[%emt 0:00:12]} Rxc3+ {[%emt 0:00:21]} 0-1

[Event "ECo-C Extraliga 2023-24"]
[Site "Slovakia"]
[Date "2024.02.25"]
[Round "8.1"]
[White "Nemeth, Miklos"]
[Black "Jablonicky, Martin"]
[Result "0-1"]
[ECO "B62"]
[WhiteElo "2440"]
[BlackElo "2377"]
[Annotator "TA"]
[PlyCount "104"]
[EventDate "2023.10.06"]
[EventType "team-tourn"]
[EventCountry "SVK"]
[SourceTitle "playchess.com"]
[Source "ChessBase"]
[SourceQuality "1"]
[TimeControl "40/5400+30:1800+30"]

{[%evp 16,104,14,18,55,0,11,-77,40,23,17,14,29,22,41,37,27,37,16,36,7,24,37,-71,135,131,143,146,157,154,144,119,119,113,124,145,139,150,206,135,193,199,197,197,244,173,145,0,22,-22,-20,-107,-100,-101,0,-115,-110,-121,-36,-127,0,-111,-92,-318,-321,-309,-310,-464,-278,-584,-554,-559,-549,-868,-863,-867,-850,-769,-603,-681,-612,-568,-535,-700,-612,-1211,-498,-1194,-1192,-833,-792]} 1. e4 {[%emt 0:00:04]} c5 {[%emt 0:04:47]} 2. Nf3 {[%emt 0:00:03]} Nc6 {[%emt 0:00:18]} 3. d4 {[%emt 0:00:15]} cxd4 {[%emt 0:00:47]} 4. Nxd4 {[%emt 0:00:06]} Nf6 {[%emt 0:00:39]} 5. Nc3 {[%emt 0:00:07]} d6 {[%emt 0:00:09]} 6. Bg5 {[%emt 0:01:50]} e6 {[%emt 0:00:05]} 7. Bb5 {[%emt 0:00:43]} Bd7 {[%emt 0:01:30]} 8. Qd3 {[%emt 0:01:37] is recently more successful than 8.Bxc6. B62: Sicilian: Richter-Rauzer: 6...e6: Unusual White 7th moves.} h6 {[%emt 0:04:46]} 9. Bh4 {[%emt 0:00:25]} Ne5 {[%emt 0:13:30]} 10. Qe2 {[%emt 0:00:43]} g5 {[%emt 0:09:41] [#]} 11. f4 $146 {[%emt 0:08:55]} (11. Bg3 $1 $11 {remains equal.}) ({Predecessor:} 11. Bg3 a6 12. Bxd7+ Nfxd7 13. h4 Rg8 14. hxg5 hxg5 15. O-O-O Qc7 16. Rh7 O-O-O 17. Rdh1 {1-0 Proudian,A (2418)-Leitao,R (2592) Titled Tuesday intern op 17th May Late blitz 2022 (7)}) 11... gxf4 {[%emt 0:19:37]} ({Black should try} 11... gxh4 $17 12. fxe5 dxe5) 12. O-O-O {[%emt 0:01:52]} Be7 {[%emt 0:04:53]} 13. Nf3 {[%emt 0:07:49]} a6 {[%emt 0:08:38]} 14. Nxe5 {[%emt 0:06:04]} axb5 {[%emt 0:00:07]} 15. Nxd7 {[%emt 0:00:08]} Nxd7 {[%emt 0:00:04]} 16. Bxe7 {[%emt 0:07:33]} Kxe7 {[%emt 0:00:04]} 17. Rd4 {[%emt 0:06:25]} Qb6 {[%emt 0:05:35]} 18. Rhd1 {[%emt 0:01:04]} Ne5 {[%emt 0:00:36]} 19. Rxd6 {[%emt 0:01:53] [#]} (19. a3 $1 $14 {stays ahead.}) 19... Qe3+ $2 {[%emt 0:00:13]} (19... Qc5 $1 $17 {...b4 would now be deadly.} 20. Kb1 b4) 20. Qxe3 $16 {[%emt 0:00:11]} fxe3 {[%emt 0:00:08]} 21. Rb6 $1 {[%emt 0:00:05]} (21. Nxb5 $2 Rxa2 22. Kb1 Rha8 $19) 21... Rab8 {[%emt 0:03:54]} 22. Rxb5 {[%emt 0:01:26]} Ng4 {[%emt 0:00:12]} 23. Re1 {[%emt 0:03:54]} Nxh2 {[%emt 0:03:04]} 24. Rxe3 {[%emt 0:00:10]} Rhg8 {[%emt 0:02:13]} 25. Re2 {[%emt 0:00:30]} Nf1 {[%emt 0:00:37]} 26. a4 {[%emt 0:02:18]} Ng3 {[%emt 0:01:09]} (26... b6 $16 27. b3 f6) 27. Rf2 {[%emt 0:00:27]} Rg4 {[%emt 0:00:33]} (27... b6 $16 {might work better.} 28. Kb1 Rg4) 28. e5 $18 {[%emt 0:03:29]} Nf5 {[%emt 0:09:33]} 29. a5 {[%emt 0:03:15]} Nd4 {[%emt 0:04:34]} (29... Rd4 $142 30. Rb6 (30. a6 b6 $11) 30... Ne3) 30. Rb6 {[%emt 0:00:07]} Nc6 {[%emt 0:00:08]} 31. Rb5 {[%emt 0:01:49]} (31. a6 $16) 31... Rb4 {[%emt 0:01:45]} 32. Rc5 {[%emt 0:00:11]} Ra8 {[%emt 0:00:26]} 33. Nb5 {[%emt 0:11:51]} (33. Rf6 $11) 33... Rxa5 $17 {[%emt 0:01:25]} 34. c4 {[%emt 0:00:03]} Raa4 {[%emt 0:00:08]} ({Better is} 34... Rb3 $17 {aiming for ...Ra1+.} 35. Kb1 Re3) 35. Na3 {[%emt 0:03:22] [#]} (35. Kb1 $11 {keeps the balance.}) 35... Rb3 $1 $17 {[%emt 0:00:12]} 36. Re2 {[%emt 0:04:50]} Kd7 {[%emt 0:00:25]} ({Black should play} 36... Kf8 $17 37. Kd1 Rg3) 37. Rd2+ {[%emt 0:01:54]} (37. Rf2 $1 $15) 37... Ke7 {[%emt 0:00:38]} 38. Re2 $1 {[%emt 0:00:04]} Ra8 {[%emt 0:00:36]} 39. Nb5 $2 {[%emt 0:00:48]} (39. Rb5 $17 {keeps fighting.} Nd4 40. Rxb3 Nxb3+ (40... Nxe2+ $2 {loses.} 41. Kd2 $18) 41. Kb1) 39... Ra1+ $19 {[%emt 0:01:08]} 40. Kc2 {[%emt 0:00:08]} Rg3 {[%emt 0:00:10]} 41. Rf2 {[%emt 0:31:09]} (41. Kd2 {was the only chance.}) 41... Rg1 {[%emt 0:31:26]} (41... h5 $142 42. Rxc6 bxc6) 42. b3 $2 {[%emt 0:05:50]} (42. Kd2 {is tougher.}) 42... R1xg2 $19 {[%emt 0:00:00]} 43. Rxg2 {[%emt 0:00:00]} Rxg2+ {[%emt 0:00:00]} 44. Kd3 {[%emt 0:00:00]} h5 {[%emt 0:00:00]} 45. Nd6 {[%emt 0:00:00]} h4 {[%emt 0:00:00]} 46. Rb5 {[%emt 0:00:00]} Nxe5+ {[%emt 0:00:00]} 47. Rxe5 {[%emt 0:00:00]} Kxd6 {[%emt 0:00:00]} (47... Rg3+ 48. Kc2 Kxd6 49. Rb5) 48. Rh5 {[%emt 0:00:00]} Rg3+ {[%emt 0:00:00]} 49. Kd4 {[%emt 0:00:00]} Rxb3 {[%emt 0:00:00]} 50. Rxh4 {[%emt 0:00:00]} e5+ {[%emt 0:00:00]} 51. Ke4 {[%emt 0:00:00]} Ke6 {[%emt 0:00:00]} 52. Rh6+ {[%emt 0:00:00]} f6 {[%emt 0:00:00]} 0-1

[Event "ECo-C Extraliga 2023-24"]
[Site "Slovakia"]
[Date "2024.02.25"]
[Round "8.1"]
[White "Kostolansky, Sebastian Lukas"]
[Black "Saric, Ivan"]
[Result "1/2-1/2"]
[ECO "B50"]
[WhiteElo "2413"]
[BlackElo "2689"]
[Annotator "TA"]
[PlyCount "87"]
[EventDate "2023.10.06"]
[EventType "team-tourn"]
[EventCountry "SVK"]
[SourceTitle "playchess.com"]
[Source "ChessBase"]
[SourceQuality "1"]
[TimeControl "40/5400+30:1800+30"]

{[%evp 16,87,14,31,47,43,65,57,64,70,71,68,50,0,0,-9,-19,-12,-9,-13,-9,-12,-10,-11,-10,-20,10,15,17,11,15,14,13,0,1,0,6,0,17,17,17,7,12,6,7,0,0,0,0,0,0,0,0,0,0,0,0,0,0,0,0,0,0,0,0,0,0,0,0,0,0,0,0,0]} 1. e4 {[%emt 0:00:05]} c5 {[%emt 0:00:57]} 2. Nf3 {[%emt 0:00:09]} d6 {[%emt 0:00:42]} 3. Bb5+ {[%emt 0:00:10]} Nd7 {[%emt 0:00:16]} 4. O-O {[%emt 0:00:30]} a6 {[%emt 0:00:06]} 5. Bd3 {[%emt 0:00:39]} Ngf6 {[%emt 0:00:15]} 6. Re1 {[%emt 0:00:35]} g6 {[%emt 0:02:04]} 7. Bf1 {[%emt 0:01:25]} Bg7 {[%emt 0:01:47]} 8. c3 {[%emt 0:00:36]} O-O {[%emt 0:01:01]} 9. d4 {[%emt 0:00:08]} e5 {[%emt 0:03:13]} 10. dxe5 {[%emt 0:00:38]} Nxe5 {[%emt 0:03:38]} 11. Nxe5 {[%emt 0:11:42]} dxe5 {[%emt 0:00:07] White is slightly better.} 12. Qxd8 {[%emt 0:01:53]} Rxd8 {[%emt 0:00:03]} 13. a4 {[%emt 0:00:40]} Be6 {[%emt 0:01:01][%cal Of6e4]} 14. Nd2 {[%emt 0:10:17]} ({White should play} 14. Na3 $14) 14... Bh6 $11 {[%emt 0:03:58] The position is equal.} 15. Nf3 {[%emt 0:04:08][%csl LRe5,LRh6]} Bxc1 {[%emt 0:00:04]} 16. Raxc1 {[%emt 0:00:06]} Nd7 {[%emt 0:00:22]} 17. a5 {[%emt 0:04:13]} f6 {[%emt 0:01:43]} 18. Nd2 {[%emt 0:08:18]} b5 {[%emt 0:04:27] White should prevent ...c4.} 19. axb6 {[%emt 0:14:49]} Nxb6 {[%emt 0:00:15]} 20. Red1 {[%emt 0:01:08]} c4 {[%emt 0:13:56]} 21. Be2 {[%emt 0:04:32]} Kf7 {[%emt 0:06:45]} 22. g3 {[%emt 0:02:04]} Ke7 {[%emt 0:02:02]} 23. Ra1 {[%emt 0:01:40]} a5 {[%emt 0:05:25]} 24. f4 {[%emt 0:03:35]} a4 {[%emt 0:02:45]} 25. fxe5 {[%emt 0:08:05]} fxe5 {[%emt 0:00:08]} 26. Kf2 {[%emt 0:01:36]} Ra5 {[%emt 0:03:18]} 27. Ke3 {[%emt 0:03:06]} h5 {[%emt 0:05:43]} 28. Nb1 {[%emt 0:04:36]} (28. Rf1 {seems wilder.} Rd6 29. Ra2 Bg4 30. Rf2) 28... Rh8 {[%emt 0:18:27]} 29. h4 {[%emt 0:05:46]} Raa8 {[%emt 0:00:12]} 30. Na3 {[%emt 0:02:22]} Rhc8 {[%emt 0:06:55]} 31. Nc2 {[%emt 0:02:00]} Rd8 {[%emt 0:08:31]} 32. Nb4 {[%emt 0:01:05]} Rxd1 {[%emt 0:01:05]} 33. Bxd1 {[%emt 0:00:06]} Kd6 {[%emt 0:00:30]} 34. Nc2 {[%emt 0:03:26]} Bd7 {[%emt 0:01:10]} 35. Be2 {[%emt 0:00:08]} Rf8 {[%emt 0:00:33]} 36. Rd1+ {[%emt 0:01:15]} Kc5 {[%emt 0:00:59]} 37. Nb4 {[%emt 0:00:17]} Bg4 {[%emt 0:02:39]} 38. Nd5 {[%emt 0:00:41]} Bxe2 {[%emt 0:01:09]} 39. Kxe2 {[%emt 0:00:03] KRN-KRN} Rb8 {[%emt 0:00:56]} 40. Nb4 {[%emt 0:01:15]} Ra8 {[%emt 0:00:35] Wards off Na6+} 41. Nc2 {[%emt 0:07:35]} Rf8 {[%emt 0:02:19]} 42. Nb4 {[%emt 0:05:47]} Ra8 {[%emt 0:01:15]} 43. Nc2 {[%emt 0:02:59]} Rf8 {[%emt 0:02:06]} 44. Nb4 {[%emt 0:00:11] Weighted Error Value: White=0.03 (flawless) /Black=0.03 (flawless) .  Mistake:       	White=1     	---        Inaccurate:     	---       	Black=1      OK:         	White=9     	Black=19} 1/2-1/2

[Event "ECo-C Extraliga 2023-24"]
[Site "Slovakia"]
[Date "2024.02.25"]
[Round "8.1"]
[White "Karacsonyi, Gellert"]
[Black "Ponizil, Cyril"]
[Result "1/2-1/2"]
[ECO "B11"]
[WhiteElo "2398"]
[BlackElo "2467"]
[Annotator "RC"]
[PlyCount "55"]
[EventDate "2023.10.06"]
[EventType "team-tourn"]
[EventCountry "SVK"]
[SourceTitle "playchess.com"]
[Source "ChessBase"]
[SourceQuality "1"]
[TimeControl "40/5400+30:1800+30"]

1. e4 {[%emt 0:00:05]} c6 {[%emt 0:00:03]} 2. Nf3 {[%emt 0:00:15]} d5 {[%emt 0:00:04]} 3. Nc3 {[%emt 0:00:09]} Bg4 {[%emt 0:00:04]} 4. h3 {[%emt 0:00:11]} Bxf3 {[%emt 0:00:03]} 5. Qxf3 {[%emt 0:00:16]} e6 {[%emt 0:00:04]} 6. d4 {[%emt 0:00:14]} Nd7 {[%emt 0:01:59]} 7. Be2 {[%emt 0:00:20]} dxe4 {[%emt 0:00:06]} 8. Nxe4 {[%emt 0:00:06]} Ngf6 {[%emt 0:00:03]} 9. O-O {[%emt 0:00:22]} Nxe4 {[%emt 0:00:05]} 10. Qxe4 {[%emt 0:00:07]} Nf6 {[%emt 0:00:04]} 11. Qd3 {[%emt 0:00:16]} Be7 {[%emt 0:00:06]} 12. Rd1 {[%emt 0:02:11]} O-O {[%emt 0:00:12]} 13. c3 {[%emt 0:04:58]} a5 {[%emt 0:00:44]} 14. a4 {[%emt 0:06:05]} h6 {[%emt 0:00:10]} 15. c4 {[%emt 0:05:30]} Qb6 {[%emt 0:05:31]} 16. Be3 {[%emt 0:05:53]} Rfd8 {[%emt 0:01:11]} 17. Bf3 {[%emt 0:00:41]} Qc7 {[%emt 0:01:59]} 18. Qb3 {[%emt 0:01:05]} Rd7 {[%emt 0:00:40]} 19. g3 {[%emt 0:03:19]} Bb4 {[%emt 0:04:15]} 20. Rac1 {[%emt 0:05:06]} Qd8 {[%emt 0:01:43]} 21. Kg2 {[%emt 0:00:31]} Qe7 {[%emt 0:01:11]} 22. Rd3 {[%emt 0:07:17]} Rad8 {[%emt 0:02:49]} 23. Rcd1 {[%emt 0:01:56]} e5 {[%emt 0:05:19]} 24. dxe5 {[%emt 0:00:14]} Qxe5 {[%emt 0:00:04]} 25. Rxd7 {[%emt 0:23:46]} Rxd7 {[%emt 0:00:08]} 26. Rxd7 {[%emt 0:00:10]} Nxd7 {[%emt 0:00:04]} 27. Qd1 {[%emt 0:00:11]} Nf8 {[%emt 0:04:59]} 28. Qd4 {[%emt 0:08:56]} 1/2-1/2

[Event "ECo-C Extraliga 2023-24"]
[Site "Slovakia"]
[Date "2024.02.25"]
[Round "8.1"]
[White "Turcan, Richard"]
[Black "Haring, Filip"]
[Result "0-1"]
[ECO "B12"]
[WhiteElo "2393"]
[BlackElo "2432"]
[Annotator "TA"]
[PlyCount "70"]
[EventDate "2023.10.06"]
[EventType "team-tourn"]
[EventCountry "SVK"]
[SourceTitle "playchess.com"]
[Source "ChessBase"]
[SourceQuality "1"]
[TimeControl "40/5400+30:1800+30"]

{[%evp 14,70,0,0,0,0,8,9,33,33,23,0,-4,-14,-9,0,-2,0,0,-20,-10,-100,-97,-110,-89,-120,-107,-96,-110,-130,-149,-150,-145,-129,-143,-109,-152,-127,-131,-137,-89,-139,-111,-110,-39,-143,-175,-873,-858,-852,-827,-832,-811,-29988,-29989,-29989,-29990,-29992,-29993]} 1. e4 {[%emt 0:00:03]} c6 {[%emt 0:00:48]} 2. d4 {[%emt 0:00:08]} d5 {[%emt 0:00:08]} 3. e5 {[%emt 0:00:38]} Bf5 {[%emt 0:00:26]} 4. h4 {[%emt 0:00:47]} h5 {[%emt 0:00:08]} 5. c4 {[%emt 0:00:26]} e6 {[%emt 0:00:20]} 6. Nc3 {[%emt 0:00:17]} dxc4 {[%emt 0:00:24]} 7. Bxc4 {[%emt 0:00:21]} Nd7 {[%emt 0:00:06]} 8. Nge2 {[%emt 0:02:00]} Be7 {[%emt 0:00:08]} 9. g3 {[%emt 0:00:15]} b5 {[%emt 0:02:45]} 10. Bb3 {[%emt 0:08:00]} b4 {[%emt 0:00:08] The position is equal.} 11. Na4 {[%emt 0:04:15]} Nh6 {[%emt 0:02:23]} 12. Bf4 {[%emt 0:11:11]} Be4 {[%emt 0:03:05]} 13. Rf1 {[%emt 0:08:41]} Nf5 {[%emt 0:05:01]} 14. f3 {[%emt 0:15:57]} Bd5 {[%emt 0:00:05]} 15. Bxd5 {[%emt 0:04:08]} cxd5 {[%emt 0:00:02]} 16. Qd2 {[%emt 0:08:02]} O-O {[%emt 0:05:10]} 17. Bg5 {[%emt 0:08:08]} (17. Kf2 $11) 17... f6 $17 {[%emt 0:15:17]} 18. exf6 {[%emt 0:00:46]} Bxf6 {[%emt 0:00:41]} 19. f4 {[%emt 0:09:36]} Qa5 {[%emt 0:09:59]} 20. b3 {[%emt 0:00:31]} Nd6 {[%emt 0:07:28]} 21. Bxf6 {[%emt 0:04:09]} Nxf6 {[%emt 0:02:53]} ({Much worse is} 21... gxf6 $6 22. Qc2 Ne4 23. Qc6 $11) 22. O-O-O {[%emt 0:04:16] [#]} Nc4 $1 {[%emt 0:08:48][%mdl 512]} 23. bxc4 {[%emt 0:02:31] Strongly threatening Qc2.} Qxa4 {[%emt 0:00:37]} 24. c5 {[%emt 0:00:21]} Ne4 $36 {[%emt 0:00:50][%mdl 2048] Black has strong initiative.} 25. Qb2 {[%emt 0:01:22]} Rab8 {[%emt 0:03:04] Black has more active pieces.} 26. Rf3 {[%emt 0:02:10]} Rfc8 {[%emt 0:10:21]} ({Black should try} 26... a5 27. Qc2 Qc6) 27. Qb3 {[%emt 0:01:33]} (27. Rdd3 $142) 27... Qa6 {[%emt 0:02:00]} 28. Re3 {[%emt 0:00:46][%cal Of4f5] [#]} Kh8 {[%emt 0:05:37]} (28... Rb5 $1 $17 {[%cal Rb5c5] ...Rbxc5+! is the strong threat.} 29. Rxe4 dxe4) 29. Re1 {[%emt 0:01:33] [#]} (29. Kb2 $15) 29... Rb5 $1 {[%emt 0:01:22] White must now prevent ...Ra5.} 30. Kb2 $2 {[%emt 0:01:27]} (30. Kd1) 30... Nd2 $19 {[%emt 0:00:22]} 31. Qd3 {[%emt 0:00:26]} Nc4+ {[%emt 0:00:24]} 32. Kb1 {[%emt 0:00:09]} b3 {[%emt 0:01:00]} (32... Nxe3 $2 33. Qxe3 b3 34. axb3 $19) 33. a4 {[%emt 0:00:40]} Qxa4 {[%emt 0:01:51] Black mates.} 34. Nc3 {[%emt 0:00:06]} Qa3 {[%emt 0:00:25][%csl Gc4][%cal Ra3b2]} 35. Qe2 {[%emt 0:00:10]} Ra5 {[%emt 0:00:33] Weighted Error Value: White=0.48/Black=0.12 (very precise) .  Mistake:       	White=4     	Black=2      Inaccurate:     	White=2     	---        OK:         	White=11    	Black=8      Best:        	---       	Black=2      Strong:       	---       	Black=1} 0-1